Cogmind - Beta 9.6 @@@ ROGUE MODE // 2020.06.07 @ 22:14:46 Player: pointone Result: Destroyed by S-27 Virus with Autogun Performance ------------- Evolutions (3) 1500 Regions Visited (5) 1000 Robots Destroyed (33) 165 Value Destroyed (1236) 1236 Prototype IDs (3) 60 Alien Tech Used (0) 0 Bonus (394) 394 TOTAL SCORE: 4355 Bonus ------- High Alert Combat Kills 349 Follower Combat Kills 45 Cogmind --------- Core Integrity 0/700 Matter 231/300 Energy 347/350 System Corruption 6% Temperature Cool (12) Movement Flying (34) Location -7/Factory Parts ------- > --- POWER (2) -------- Light Nuclear Core Improved Deuterium Engine > --- PROPULSION (5) --- VTOL Module VTOL Module VTOL Module > --- UTILITY (4) ------ (None) > --- WEAPON (2) ------- (None) > --- INVENTORY (4) ---- Cooled Particle Cannon Autogun Enhanced Autogun Peak State ------------ > --- POWER ------------ Improved Deuterium Engine Improved Deuterium Engine > --- PROPULSION ------- Medium Treads Medium Treads Medium Treads Medium Treads Medium Treads > --- UTILITY ---------- Large Matter Pod Advanced Targeting Computer Medium Reactive Plating System Shield > --- WEAPON ----------- Enhanced Autogun Enhanced Autogun > --- INVENTORY -------- Heavy Particle Gun Enhanced Autogun Enhanced Autogun Proton Missile Launcher [Rating: 48] Favorites ----------- Power Improved Deuterium Engine Engine Improved Deuterium Engine Power Core Light Nuclear Core Propulsion Medium Treads Treads Medium Treads Leg Aluminum Leg Hover Unit Gravmag System Flight Unit VTOL Module Utility Large Matter Pod Device Advanced Heat Sink Storage Large Matter Pod Processor Advanced Targeting Computer Hackware System Shield Protection Medium Reactive Plating Weapon Enhanced Autogun Energy Gun Medium Laser Energy Cannon Cooled Particle Cannon Ballistic Gun Enhanced Autogun Launcher Proton Missile Launcher Build | -11 -10 -10 -9 -8 -7 ------- Run | Scr Mat Min Mat Mat Fac Slots Evolved 6 | . . . 2 2 2 Power 1 | . . . . 1 . Propulsion 3 | . . . 2 . 1 Utility 2 | . . . . 1 1 Weapon . | . . . . . . Parts Attached 44 | 6 . . . 2 36 Power 8 | 1 . . . . 7 Engine 7 | 1 . . . . 6 Core 1 | . . . . . 1 Reactor . | . . . . . . Propulsion 13 | 2 . . . . 11 Treads 5 | . . . . . 5 Leg 2 | 2 . . . . . Wheel . | . . . . . . Hover 2 | . . . . . 2 Flight 4 | . . . . . 4 Utility 7 | 1 . . . . 6 Device 1 | . . . . . 1 Storage 2 | 1 . . . . 1 Processor 1 | . . . . . 1 Hackware 2 | . . . . . 2 Protection 1 | . . . . . 1 Artifact . | . . . . . . Weapon 16 | 2 . . . 2 12 Energy Gun 5 | 2 . . . . 3 Energy Cannon 1 | . . . . . 1 Ballistic Gun 6 | . . . . . 6 Ballistic Cannon . | . . . . . . Launcher 4 | . . . . 2 2 Special Weapon . | . . . . . . Impact Weapon . | . . . . . . Slashing Weapon . | . . . . . . Piercing Weapon . | . . . . . . Special Melee Weapon . | . . . . . . Unidentified Prototypes 3 | . . . . . 3 Parts Lost 22 | . . 2 . . 20 Power 2 | . . . . . 2 Propulsion 7 | . . 1 . . 6 Utility 6 | . . . . . 6 Weapon 7 | . . 1 . . 6 Highest Loss Streak 7 | . . 2 . . 7 Average Slot Usage (%) 59 | . 85 47 . 3 69 Engine 9 | . 14 7 . . 10 Treads 18 | . . . . . 24 Leg 2 | . 28 15 . . . Hover 2 | . . . . . 3 Device 2 | . . . . . 3 Storage 4 | . 14 7 . . 4 Processor 1 | . . . . . 1 Hackware 2 | . . . . . 3 Protection 1 | . . . . . 1 Energy Gun 2 | . 28 15 . . . Ballistic Gun 8 | . . . . . 11 Naked Turns 383 | . . 79 147 58 99 Heaviest Build 49 | 11 11 11 . 14 49 Greatest Support 140 | 20 20 20 3 3 140 Greatest Overweight (x) 5 | 2 . . . 4 5 Average Overweight (x) . | . . . . . . Largest Inventory Capacity 6 | 6 6 6 4 4 4 Average Capacity 4 | 5 6 5 4 4 4 Most Carried 4 | 2 3 3 4 4 4 Average Carried 3 | 1 2 3 3 3 3 Final Capacity 6 | 6 6 4 4 4 4 Final Carried 4 | 2 3 3 4 4 3 Class Distribution -------------------- 83% | Mutant 16% | Commander-Mutant Dominant Class ---------------- Mutant | -10/Materials Mutant | -10/Mines Mutant | -9/Materials Mutant | -8/Materials Mutant | -7/Factory Resources | -11 -10 -10 -9 -8 -7 ----------- Run | Scr Mat Min Mat Mat Fac Matter Collected 992 | 211 . 101 . . 680 Remotely . | . . . . . . Salvage Created 1182 | . . 26 . 35 1121 Parts 64 | . . . . 3 61 Haulers Intercepted . | . . . . . . Recyclers Shooed . | . . . . . . Parts Field Recycled . | . . . . . . Retrieved Matter . | . . . . . . Parts Self-Destructed . | . . . . . . Prevented . | . . . . . . Kills | -11 -10 -10 -9 -8 -7 ------- Run | Scr Mat Min Mat Mat Fac Combat Hostiles Destroyed 30 | . . 2 . 2 26 Guns 20 | . . 1 . . 19 Cannons 1 | . . . . . 1 AOE 8 | . . 1 . 2 5 Classes Destroyed 7 | . . 1 . 1 5 Worker 3 | . . . . . 3 Swarmer 9 | . . . . 2 7 Grunt 15 | . . . . . 15 Brawler 1 | . . . . . 1 Sentry 2 | . . . . . 2 Programmer 1 | . . . . . 1 Assembled 2 | . . 2 . . . Best Kill Streak 5 | . . 2 . 2 5 Combat Bots Only 5 | . . 2 . 2 5 Max Kills in Single Turn 4 | . . 1 . 2 4 Gunslinging 1 | . . . . . 1 Exploded 4 | . . 1 . 2 4 Melee . | . . . . . . Uniques/NPCs Destroyed . | . . . . . . Combat | -11 -10 -10 -9 -8 -7 -------- Run | Scr Mat Min Mat Mat Fac Damage Taken 3707 | . 101 247 162 180 3017 Core 1130 | . 10 113 162 136 709 Absorbed by Shields . | . . . . . . Core Remaining (%) 71 | 100 . 50 59 75 . Volleys Fired 113 | . . 4 . 1 108 Largest 2 | . . 2 . 1 2 Hottest 90 | . . 90 . 39 85 Shots Fired 198 | . . 8 . 1 189 Gun 175 | . . 8 . . 167 Cannon 21 | . . . . . 21 Launcher 2 | . . . . 1 1 Special . | . . . . . . Kinetic 148 | . . . . . 148 Thermal 44 | . . 4 . . 40 Explosive . | . . . . . . Electromagnetic 6 | . . 4 . 1 1 Robot Hit Streak 20 | . . 1 . 2 20 Robot Miss Streak 5 | . . 1 . . 5 Penetration Max . | . . . . . . Secondary Targets 4 | . . . . . 4 Max Gunslinging Chain 1 | . . . . . 1 Shots Hit Robots 99 | . . 3 . 1 95 Core Hits 51 | . . 4 1 3 43 Critical Hits 1 | . . . . . 1 Critical Kills . | . . . . . . Critical Parts Destroyed 1 | . . . . . 1 Melee Attacks . | . . . . . . Impact . | . . . . . . Slashing . | . . . . . . Piercing . | . . . . . . Sneak Attacks . | . . . . . . Combat Hostiles . | . . . . . . Follow-up Attacks . | . . . . . . Damage Inflicted 2457 | . . 71 10 77 2299 Guns 1608 | . . 32 . . 1576 Cannons 81 | . . . . . 81 Explosions 732 | . . 39 . 71 622 Melee . | . . . . . . Ramming 36 | . . . 10 6 20 Kinetic 1555 | . . . . . 1555 Thermal 600 | . . 39 . . 561 Explosive 125 | . . . . . 125 Electromagnetic 141 | . . 32 . 71 38 Impact . | . . . . . . Slashing . | . . . . . . Piercing . | . . . . . . Highest Corruption 6 | . . 3 . 4 6 Average Corruption 4 | . . 3 . 2 4 Corruption Purged . | . . . . . . Effects 23 | . . . . 2 21 Message Errors 9 | . . . . 1 8 Matter Fused 1 | . . . . . 1 Heat Flow Errors 1 | . . . . 1 . Energy Discharges 2 | . . . . . 2 Data Loss (minor) 3 | . . . . . 3 Misfires 1 | . . . . . 1 Targeting Errors 6 | . . . . . 6 Overload Shots . | . . . . . . Overflow Damage 143 | . . . . . 143 Projectiles . | . . . . . . Explosions 143 | . . . . . 143 Melee . | . . . . . . Knockbacks . | . . . . . . Impact . | . . . . . . Kinetic . | . . . . . . Secondary . | . . . . . . Self-Inflicted Damage 522 | . . 35 4 12 471 Shots 8 | . . 1 . 1 6 Rammed 8 | . . . 3 3 2 Targets Rammed 8 | . . . 3 3 2 Kicked . | . . . . . . Crushed . | . . . . . . Highest Temperature 296 | . . 130 . 171 296 Average Temperature 81 | . . 63 . 93 83 Received Heat Transfer 835 | . 6 40 72 18 699 Siege Activations . | . . . . . . Robots Corrupted . | . . . . . . Combat Hostiles . | . . . . . . Parts Fried 1 | . . . . . 1 Impact Corruptions . | . . . . . . Robots Melted . | . . . . . . Combat Hostiles . | . . . . . . Parts Melted . | . . . . . . Heat Transferred 498 | . . 100 . . 398 Parts Sabotaged . | . . . . . . Parts Stolen . | . . . . . . Parts Stripped . | . . . . . . Power Chain Reactions . | . . . . . . Missiles Intercepted . | . . . . . . Alert | -11 -10 -10 -9 -8 -7 ------- Run | Scr Mat Min Mat Mat Fac Peak Influence 822 | . 8 33 49 145 822 Average Influence 308 | . 5 8 27 74 414 Maximum Alert Level 3 | . . . . . 3 Low Security (%) 59 | 100 100 100 100 100 44 Level 1 . | . . . . . . Level 2 22 | . . . . . 30 Level 3 18 | . . . . . 25 Level 4 . | . . . . . . Level 5 . | . . . . . . High Security . | . . . . . . Max Security . | . . . . . . Squads Dispatched 22 | . . . 2 2 18 Investigation 7 | . . . 1 1 5 Extermination 2 | . . . . . 2 Reinforcement 4 | . . . 1 1 2 Assault . | . . . . . . Garrison 9 | . . . . . 9 Intercept . | . . . . . . Construction Impeded 1 | . . . . . 1 Haulers Reinforced . | . . . . . . Stealth | -11 -10 -10 -9 -8 -7 --------- Run | Scr Mat Min Mat Mat Fac Distress Signals 5 | . 2 2 1 . . Communications Jammed . | . . . . . . Distress Signals . | . . . . . . Times Spotted 77 | . 8 6 9 12 42 Peak Tracking Total 12 | . 8 4 8 12 7 Tactical Retreats 9 | . . 3 1 1 4 Traps | -11 -10 -10 -9 -8 -7 ------- Run | Scr Mat Min Mat Mat Fac Traps Triggered 4 | . . . 1 1 2 Indirectly . | . . . . . . Trap Hack Attempts . | . . . . . . Triggered . | . . . . . . Disarmed . | . . . . . . Reprogrammed . | . . . . . . Reused . | . . . . . . Traps Extracted . | . . . . . . Installed . | . . . . . . Triggered . | . . . . . . Machines | -11 -10 -10 -9 -8 -7 ---------- Run | Scr Mat Min Mat Mat Fac Machines Disabled 10 | . . 1 . . 9 Max in Single Turn 4 | . . 1 . . 4 Machines Sabotaged . | . . . . . . Garrisons Compromised . | . . . . . . Overloaded Fab Kills 5 | . . . . . 5 Fab Network Shutdowns 1 | . . . . . 1 Hacking | -11 -10 -10 -9 -8 -7 --------- Run | Scr Mat Min Mat Mat Fac Machines Accessed 11 | . 1 . 2 1 7 Terminals 6 | . 1 . 2 1 2 Fabricators 4 | . . . . . 4 Repair Stations . | . . . . . . Recycling Units . | . . . . . . Scanalyzers . | . . . . . . Garrison Access 1 | . . . . . 1 Total Hacks 32 | . 3 . 6 2 21 Successful 12 | . 2 . . . 10 Failed 20 | . 1 . 6 2 11 Catastrophic 4 | . . . 1 1 2 Database Lockouts . | . . . . . . Manual 17 | . 2 . 3 2 10 Terminals 18 | . 3 . 6 2 7 Fabricators 10 | . . . . . 10 Repair Stations . | . . . . . . Recycling Units . | . . . . . . Scanalyzers . | . . . . . . Garrison Access 4 | . . . . . 4 Terminal Hacks 5 | . 2 . . . 3 Record 3 | . 1 . . . 2 Branch Access Points 1 | . 1 . . . . Unreport Threat 1 | . . . . . 1 Fabricator Hacks 2 | . . . . . 2 Build 2 | . . . . . 2 Repair Station Hacks . | . . . . . . Recycling Unit Hacks . | . . . . . . Scanalyzer . | . . . . . . Garrison Access Hacks . | . . . . . . Unauthorized Hacks 5 | . . . . . 5 Terminals . | . . . . . . Fabricators 4 | . . . . . 4 Report 1 | . . . . . 1 Siphon 1 | . . . . . 1 Overload 2 | . . . . . 2 Repair Stations . | . . . . . . Recycling Units . | . . . . . . Scanalyzers . | . . . . . . Garrison Access 1 | . . . . . 1 Reprogram 1 | . . . . . 1 Data Cores Recovered . | . . . . . . Used . | . . . . . . Hacking Detections 7 | . 1 . 2 1 3 Full Trace Events 3 | . . . . 1 2 Feedback Events . | . . . . . . Feedback Blocked . | . . . . . . Robot Schematics Acquired . | . . . . . . Robots Built 8 | . . . . . 8 Matter 504 | . . . . . 504 Time 134 | . . . . . 134 Total Robot Build Rating 32 | . . . . . 32 Part Schematics Acquired . | . . . . . . Parts Built . | . . . . . . Matter . | . . . . . . Time . | . . . . . . Total Part Build Rating . | . . . . . . Parts Repaired . | . . . . . . Time . | . . . . . . Parts Recycled . | . . . . . . Recycled Matter . | . . . . . . Retrieved Matter . | . . . . . . Retrieved Components . | . . . . . . Parts Scanalyzed . | . . . . . . Part Schematics Acquired . | . . . . . . Parts Damaged . | . . . . . . Bothacking | -11 -10 -10 -9 -8 -7 ------------ Run | Scr Mat Min Mat Mat Fac Used RIF Installer . | . . . . . . Robots Hacked . | . . . . . . Non-combat . | . . . . . . Combat . | . . . . . . Robot Hacks Applied . | . . . . . . Relay Couplers Released . | . . . . . . Robots Rewired . | . . . . . . Allies Hacked . | . . . . . . Hacks Repelled . | . . . . . . Allies | -11 -10 -10 -9 -8 -7 -------- Run | Scr Mat Min Mat Mat Fac Total Allies 9 | . . . . . 9 Largest Group 8 | . . . . . 8 Highest-Rated Group 96 | . . . . . 96 Highest-Rated Ally 32 | . . . . . 32 Total Orders 1 | . . . . . 1 ROAM 1 | . . . . . 1 Ally Attacks 55 | . . . . . 55 Total Damage 631 | . . . . . 631 Kills 4 | . . . . . 4 Allies Corrupted . | . . . . . . Allies Melted . | . . . . . . Intel | -11 -10 -10 -9 -8 -7 ------- Run | Scr Mat Min Mat Mat Fac Robot Analysis Total . | . . . . . . Derelict Logs Recovered 1 | . . 1 . . . Drone Launches . | . . . . . . Drone Recoveries . | . . . . . . Exploration | -11 -10 -10 -9 -8 -7 ------------- Run | Scr Mat Min Mat Mat Fac Turns Passed 1872 | 43 68 182 147 68 1364 Spaces Moved 1627 | 29 55 232 286 111 914 Core 765 | 5 . 158 286 111 205 Treads 434 | . . . . . 434 Legs 153 | 24 55 74 . . . Wheels . | . . . . . . Hover 237 | . . . . . 237 Flight 38 | . . . . . 38 Fastest Speed 31 | 50 120 50 50 50 31 Average Speed 93 | 111 120 72 50 52 116 Slowest Speed 300 | 150 120 120 50 250 300 Overloaded Moves . | . . . . . . Propulsion Burnouts . | . . . . . . Robots Hopped . | . . . . . . Cave-ins Triggered . | . . . . . . Exploration Rate (%) 27 | 3 20 63 35 15 29 Regions Visited 5 Branch Regions 1 Pre-discovered Areas . | . . . . . . Known Exits Taken 2 | . 1 1 . . . Unknown Exits Taken 3 | 1 . . 1 1 . Scrap Searched 2 | . . 2 . . . Spaces Dug . | . . . . . . Terrain Destroyed 96 | . . 8 . . 88 Melee . | . . . . . . Projectile . | . . . . . . AOE 96 | . . 8 . . 88 Actions | -11 -10 -10 -9 -8 -7 --------- Run | Scr Mat Min Mat Mat Fac Total 1816 | 36 57 237 289 119 1078 Wait 4 | . 2 2 . . . Move 1622 | 28 54 231 285 110 914 Hop . | . . . . . . Pick Up 11 | 2 1 . 1 . 7 Fast Attach 28 | 6 . . . 2 20 Attach 11 | . . . . . 11 Detach 6 | . . . . 1 5 Swap 5 | . . . . . 5 Drop 8 | . . . . 2 6 Fire 113 | . . 4 . 1 108 Melee . | . . . . . . Ram 6 | . . . 3 3 . Kick . | . . . . . . Crush 2 | . . . . . 2 Escape Stasis . | . . . . . . Rewire . | . . . . . . Trap . | . . . . . . Miscellaneous . | . . . . . . Route ------- -11/Scrapyard -10/Materials (discovered 2 exits: *Min x2) -10/Mines -9/Materials -8/Materials -7/Factory History --------- Turn | Location | Event 12 | -11/Scrapyard | Discovered new exit (range 16) 44 | -11/Scrapyard | Entered Materials 62 | -10/Materials | Identified exit to Mines 112 | -10/Materials | Entered Mines 113 | -10/Mines | Assembled infested the area 215 | -10/Mines | Released all parts (4) 245 | -10/Mines | Identified exit to Materials 294 | -10/Mines | Entered Materials 294 | -9/Materials | Evolved 2 slots: Propulsion x2 311 | -9/Materials | Build established: Mutant 389 | -9/Materials | Discovered new exit (range 4) 441 | -9/Materials | Entered another Materials area 441 | -8/Materials | Evolved 2 slots: Power x1, Utility x1 508 | -8/Materials | Discovered new exit (range 3) 509 | -8/Materials | Entered Factory 509 | -7/Factory | Evolved 2 slots: Propulsion x1, Utility x1 620 | -7/Factory | Fabricated S-27 Virus? 710 | -7/Factory | Fabricated S-27 Virus? 906 | -7/Factory | Garrison activated, responded to threat 1112 | -7/Factory | Local fabrication network quarantined 1675 | -7/Factory | Core integrity fell below 50% 1705 | -7/Factory | Lost 7 parts (1p2n1u3w) 1789 | -7/Factory | Core integrity fell below 20% 1873 | -7/Factory | Destroyed by S-27 Virus with Autogun Last Messages --------------- Enh. Autogun destroyed. G-47 Trooper destroyed. RS0A5 W #YKAL|BY%&CTZGCL: R-06 Scavenger collects Particle Gun. System corrupted: Enh. Autogun targeting data glitched. R-06 Scavenger collects Aluminum Leg. G-47 Trooper destroyed. Acquired 20 matter. Acquired VTOL Module. Acquired Lgt. Nuclear Core. Acquired 40 matter. Acquired 46 matter. Acquired Autogun. GG|>T4VFRYOQ|N